fUST/lending_fUST_20250729
["ID","MTS","AMOUNT","RATE_DAILY","PERIOD"]
[375772210,1753739442861,-460.0,0.00019714,2]
[375772211,1753739442871,-460.0,0.00019714,2]
[375772212,1753739442881,-460.0,0.00019714,2]
[375772213,1753739442890,-460.0,0.00019714,2]
[375772214,1753739442900,-460.0,0.00019714,2]
[375772215,1753739442911,-460.0,0.00019716,2]
[375772216,1753739442922,-689.95,0.00019716,2]
[375772217,1753739442932,-460.0,0.00019716,2]
[375772218,1753739442942,-460.0,0.00019717,2]
[375772219,1753739442952,-460.0,0.00019717,2]
[375772220,1753739442962,-460.0,0.00019717,2]
[375772221,1753739442971,-2815.69,0.00019717,2]
[375772222,1753739442981,-460.0,0.00019717,2]
[375772223,1753739442992,-460.0,0.00019719,2]
[375772224,1753739443003,-460.0,0.0001972,2]
[375772225,1753739443013,-460.0,0.0001972,2]
[375772226,1753739443023,-314.60891328,0.0001972,2]
[375772227,1753739443032,-460.0,0.0001972,2]
[375772229,1753739443042,-460.0,0.0001972,2]
[375772231,1753739443052,-460.0,0.0001972,2]
[375772232,1753739443062,-460.0,0.0001972,2]
[375772233,1753739443074,-460.0,0.0001972,2]
[375772234,1753739443083,-568.04,0.0001972,2]
[375772235,1753739443094,-460.0,0.0001972,2]
[375772236,1753739443104,-839.84,0.0001972,2]
[375772237,1753739443115,-460.0,0.0001972,2]
[375772238,1753739443125,-460.0,0.00019724,2]
[375772239,1753739443135,-923.15,0.00019724,2]
[375772240,1753739443145,-191.03217098,0.00019724,2]
[375772241,1753739443156,-460.0,0.00019724,2]
[375772242,1753739443166,-796.17,0.00019724,2]
[375772243,1753739443176,-460.0,0.00019724,2]
[375772244,1753739443186,-460.0,0.00019724,2]
[375772245,1753739443195,-460.0,0.00019724,2]
[375772246,1753739443205,-460.0,0.00019724,2]
[375772247,1753739443214,-460.0,0.00019724,2]
[375772248,1753739443224,-500.0,0.00019773,2]
[375772249,1753739443234,-500.0,0.00019773,2]
[375772250,1753739443244,-500.0,0.00019773,2]
[375772251,1753739443254,-500.0,0.00019773,2]
[375772252,1753739443264,-500.0,0.00019773,2]
[375772253,1753739443274,-500.0,0.00019773,2]
[375772254,1753739443284,-200.0,0.00019825,15]
[375772255,1753739443294,-200.0,0.00019825,15]
[375772256,1753739443304,-200.0,0.00019825,15]
[375772257,1753739443314,-200.0,0.00019825,15]
[375772258,1753739443323,-672.89646557,0.0001989,2]
[375772259,1753739443334,-447.40591374,0.0001989,2]
[375772260,1753739443344,-310.91677951,0.00019973,2]
[375772261,1753739443454,-189.08322049,0.00019973,2]
[375772262,1753739443464,-500.0,0.00019973,2]
[375772263,1753739443475,-41.89677871,0.00019985,2]
[375772264,1753739443488,-418.10322129,0.00019985,2]
[375772265,1753739443498,-460.0,0.00019985,2]
[375772266,1753739443508,-623.23,0.00019985,2]
[375772267,1753739443517,-460.0,0.00019985,2]
[375772268,1753739443528,-460.0,0.00019986,2]
[375772269,1753739443538,-460.0,0.00019986,2]
[375772270,1753739443548,-808.63,0.00019986,2]
[375772271,1753739443558,-460.0,0.00019986,2]
[375772272,1753739443568,-1094.9,0.00019986,2]
[375772273,1753739443589,-460.0,0.00019986,2]
[375772274,1753739443601,-244.94,0.00019986,2]
[375772275,1753739443611,-460.0,0.00019986,2]
[375772276,1753739443621,-1894.34,0.00019986,2]
[375772277,1753739443631,-460.0,0.00019986,2]
[375772278,1753739443641,-421.81427764,0.00019986,2]
[375772279,1753739443661,-38.18572236,0.00019986,2]
[375772280,1753739443672,-460.0,0.00019986,2]
[375772281,1753739443683,-460.0,0.00019986,2]
[375772282,1753739443692,-460.0,0.00019986,2]
[375772283,1753739443702,-460.0,0.00019986,2]
[375772284,1753739443712,-460.0,0.00019987,2]
[375772285,1753739443722,-460.0,0.00019987,2]
[375772286,1753739443733,-460.0,0.00019987,2]
[375772287,1753739443743,-218.91427764,0.00019987,2]
[375772288,1753739443761,-241.08572236,0.00019987,2]
[375772289,1753739443771,-460.0,0.00019987,2]
[375772290,1753739443781,-460.0,0.00019987,2]
[375772291,1753739443792,-460.0,0.00019987,2]
[375772292,1753739443802,-460.0,0.00019987,2]
[375772293,1753739443812,-460.0,0.00019987,2]
[375772294,1753739443822,-460.0,0.00019987,2]
[375772295,1753739443832,-460.0,0.00019987,2]
[375772296,1753739443843,-460.0,0.00019987,2]
[375772297,1753739443853,-460.0,0.00019987,2]
[375772298,1753739443863,-460.0,0.00019987,2]
[375772299,1753739443873,-693.42,0.00019987,2]
[375772300,1753739443884,-460.0,0.00019987,2]
[375772301,1753739443894,-460.0,0.00019987,2]
[375772302,1753739443904,-460.0,0.00019987,2]
[375772303,1753739443914,-460.0,0.00019987,2]
[375772304,1753739443924,-460.0,0.00019987,2]
[375772305,1753739443935,-460.0,0.00019987,2]
[375772306,1753739443945,-460.0,0.00019987,2]
[375772307,1753739443954,-460.0,0.00019987,2]
[375772308,1753739443965,-460.0,0.00019987,2]
[375772309,1753739443975,-460.0,0.00019987,2]
[375772310,1753739443985,-460.0,0.00019987,2]
[375772311,1753739443995,-460.0,0.00019987,2]
[375772312,1753739444006,-407.97,0.00019987,2]
[375772313,1753739444016,-460.0,0.00019987,2]
[375772314,1753739444028,-460.0,0.00019987,2]
[375772315,1753739444038,-460.0,0.00019987,2]
[375772316,1753739444050,-460.0,0.00019987,2]
[375772317,1753739444060,-460.0,0.00019987,2]
[375772318,1753739444074,-460.0,0.00019987,2]
[375772319,1753739444085,-460.0,0.00019987,2]
[375772320,1753739444096,-460.0,0.00019987,2]
[375772321,1753739444108,-460.0,0.00019987,2]
[375772322,1753739444119,-406.90041642,0.00019987,2]
[375772323,1753739444129,-460.0,0.00019987,2]
[375772324,1753739444140,-460.0,0.00019988,2]
[375772325,1753739444151,-462.71843929,0.00019988,2]
[375772326,1753739444163,-460.0,0.00019988,2]
[375772327,1753739444174,-460.0,0.00019988,2]
[375772328,1753739444184,-460.0,0.00019988,2]
[375772329,1753739444199,-464.35056706,0.00019988,2]
[375772330,1753739444210,-460.0,0.00019988,2]
[375772331,1753739444220,-460.0,0.00019988,2]
[375772332,1753739444230,-570.44237525,0.00019988,2]
[375772333,1753739444240,-460.0,0.00019988,2]
[375772334,1753739444250,-460.0,0.00019988,2]
[375772335,1753739444261,-460.0,0.00019988,2]
[375772336,1753739444271,-460.0,0.00019988,2]
[375772337,1753739444281,-460.0,0.00019988,2]
[375772338,1753739444291,-460.0,0.00019988,2]
[375772339,1753739444300,-389.96461671,0.00019988,2]
[375772340,1753739444311,-460.0,0.00019988,2]
[375772341,1753739444321,-460.0,0.00019988,2]
[375772342,1753739444332,-460.0,0.00019988,2]
[375772343,1753739444342,-460.0,0.00019988,2]
[375772344,1753739444354,-460.0,0.00019988,2]
[375772345,1753739444364,-460.0,0.00019988,2]
[375772346,1753739444374,-2311.29006662,0.0001999,2]
[375772347,1753739444384,-70620.55238623,0.0001999,2]
[375772348,1753739444395,-460.0,0.0001999,2]
[375772349,1753739444405,-689.95,0.0001999,2]
[375772350,1753739444415,-460.0,0.0001999,2]
[375772351,1753739444425,-460.0,0.00019991,2]
[375772352,1753739444435,-2815.69,0.00019991,2]
[375772353,1753739444445,-460.0,0.00019991,2]
[375772354,1753739444456,-460.0,0.00019994,2]
[375772355,1753739444467,-584.93,0.00019994,2]
[375772356,1753739444477,-460.0,0.00019994,2]
[375772357,1753739444487,-460.0,0.00019994,2]
[375772358,1753739444497,-460.0,0.00019994,2]
[375772359,1753739444507,-568.04,0.00019994,2]
[375772360,1753739444518,-839.84,0.00019994,2]
[375772361,1753739444528,-460.0,0.00019994,2]
[375772362,1753739444539,-460.0,0.00019998,2]
[375772363,1753739444549,-923.15,0.00019998,2]
[375772364,1753739444560,-460.0,0.00019998,2]
[375772365,1753739444570,-796.17,0.00019998,2]
[375772366,1753739444580,-460.0,0.00019998,2]
[375772367,1753739444590,-460.0,0.00019998,2]
[375772368,1753739444601,-460.0,0.00019998,2]
[375772369,1753739444612,-460.0,0.00019998,2]
[375772370,1753739444623,-1000.0,0.00020021,2]
[375772371,1753739444633,-300.27863,0.00020187,2]
[375772372,1753739444643,-315.16126817,0.00020244,2]
[375772373,1753739444653,-460.0,0.00020259,2]
[375772374,1753739444663,-460.0,0.00020259,2]
[375772375,1753739444673,-623.23,0.00020259,2]
[375772376,1753739444684,-460.0,0.00020259,2]
[375772377,1753739444694,-446.08885623,0.0002026,2]
[375772378,1753739444704,-808.63,0.0002026,2]
[375772379,1753739444714,-460.0,0.0002026,2]
[375772381,1753739444725,-1094.9,0.0002026,2]
[375772384,1753739444736,-460.0,0.0002026,2]
[375772386,1753739444746,-460.0,0.0002026,2]
[375772388,1753739444756,-1894.34,0.0002026,2]
[375772390,1753739444766,-460.0,0.0002026,2]
[375772392,1753739444776,-460.0,0.0002026,2]
[375772394,1753739444786,-460.0,0.0002026,2]
[375772396,1753739444796,-460.0,0.00020261,2]
[375772398,1753739444806,-460.0,0.00020261,2]
[375772400,1753739444816,-460.0,0.00020261,2]
[375772402,1753739444829,-592.39619859,0.00020261,2]
[375772404,1753739444839,-460.0,0.00020261,2]
[375772413,1753739444919,-460.0,0.00020261,2]
[375772415,1753739444929,-460.0,0.00020261,2]
[375772417,1753739444938,-460.0,0.00020261,2]
[375772419,1753739444948,-460.0,0.00020261,2]
[375772421,1753739444957,-460.0,0.00020261,2]
[375772423,1753739444967,-500.8,0.00020261,2]
[375772425,1753739444975,-460.0,0.00020261,2]
[375772427,1753739444985,-693.42,0.00020261,2]
[375772429,1753739444995,-460.0,0.00020261,2]
[375772431,1753739445004,-460.0,0.00020261,2]
[375772433,1753739445014,-460.0,0.00020261,2]
[375772434,1753739445023,-460.0,0.00020261,2]
[375772435,1753739445032,-460.0,0.00020261,2]
[375772436,1753739445041,-460.0,0.00020261,2]
[375772437,1753739445050,-460.0,0.00020261,2]
[375772438,1753739445060,-460.0,0.00020261,2]
[375772439,1753739445069,-460.0,0.00020261,2]
[375772440,1753739445082,-460.0,0.00020261,2]
[375772441,1753739445091,-460.0,0.00020261,2]
[375772442,1753739445101,-460.0,0.00020261,2]
[375772444,1753739445111,-460.0,0.00020261,2]
[375772445,1753739445122,-460.0,0.00020261,2]
[375772446,1753739445132,-579.21818815,0.00020262,2]
[375772447,1753739445142,-196.00371425,0.00020262,2]
[375772448,1753739445152,-460.0,0.00020262,2]
[375772449,1753739445161,-460.0,0.00020262,2]
[375772450,1753739445171,-460.0,0.00020262,2]
[375772452,1753739445181,-460.0,0.00020262,2]
[375772453,1753739445190,-460.0,0.00020262,2]
[375772454,1753739445200,-460.0,0.00020262,2]
[375772455,1753739445209,-460.0,0.00020262,2]
[375772456,1753739445219,-460.0,0.00020262,2]
[375772457,1753739445229,-460.0,0.00020264,2]
[375772458,1753739445238,-689.95,0.00020264,2]
[375772459,1753739445247,-2815.69,0.00020265,2]
[375772460,1753739445258,-460.0,0.00020265,2]
[375772461,1753739445267,-460.0,0.00020268,2]
[375772462,1753739445276,-460.0,0.00020268,2]
[375772463,1753739445286,-568.04,0.00020268,2]
[375772464,1753739445296,-839.84,0.00020268,2]
[375772465,1753739445305,-460.0,0.00020272,2]
[375772466,1753739445314,-923.15,0.00020272,2]
[375772467,1753739445324,-460.0,0.00020272,2]
[375772468,1753739445334,-796.17,0.00020272,2]
[375772469,1753739445344,-460.0,0.00020272,2]
[375772470,1753739445355,-460.0,0.00020272,2]
[375772471,1753739445365,-460.0,0.00020272,2]
[375772472,1753739445375,-460.0,0.00020272,2]
[375772473,1753739445384,-1000.0,0.00020321,2]
[375772474,1753739445394,-1000.0,0.00020321,2]
[375772475,1753739445404,-1000.0,0.00020321,2]
[375772476,1753739445413,-1000.0,0.00020321,2]
[375772477,1753739445423,-1000.0,0.00020321,2]
[375772478,1753739445433,-672.89646556,0.00020515,2]
[375772479,1753739445444,-1000.0,0.00020521,2]
[375772480,1753739445454,-248.41587355,0.00020523,2]
[375772481,1753739445464,-562.92,0.00020533,2]
[375772482,1753739445474,-460.0,0.00020533,2]
[375772483,1753739445483,-623.23,0.00020533,2]
[375772484,1753739445493,-460.0,0.00020533,2]
[375772485,1753739445503,-808.63,0.00020534,2]
[375772486,1753739445513,-460.0,0.00020534,2]
[375772487,1753739445523,-1094.9,0.00020534,2]
[375772488,1753739445533,-460.0,0.00020534,2]
[375772489,1753739445543,-460.0,0.00020534,2]
[375772490,1753739445552,-1894.34,0.00020534,2]
[375772491,1753739445563,-460.0,0.00020534,2]
[375772492,1753739445573,-460.0,0.00020534,2]
[375772493,1753739445583,-460.0,0.00020535,2]
[375772494,1753739445593,-460.0,0.00020535,2]
[375772495,1753739445603,-460.0,0.00020535,2]
[375772496,1753739445614,-460.0,0.00020535,2]
[375772497,1753739445624,-460.98261504,0.00020535,2]
[375772498,1753739445633,-460.0,0.00020535,2]
[375772499,1753739445643,-460.0,0.00020535,2]
[375772500,1753739445652,-460.0,0.00020535,2]
[375772501,1753739445663,-460.0,0.00020535,2]
[375772502,1753739445672,-693.42,0.00020535,2]
[375772503,1753739445682,-460.0,0.00020535,2]
[375772504,1753739445692,-460.0,0.00020535,2]
[375772505,1753739445702,-460.0,0.00020535,2]
[375772506,1753739445725,-460.0,0.00020535,2]
[375772507,1753739445735,-583.1,0.00020535,2]
[375772508,1753739445746,-460.0,0.00020535,2]
[375772509,1753739445756,-460.0,0.00020535,2]
[375772510,1753739445767,-460.0,0.00020535,2]
[375772511,1753739445776,-460.0,0.00020535,2]
[375772512,1753739445786,-460.0,0.00020535,2]
[375772513,1753739445796,-460.0,0.00020535,2]
[375772514,1753739445806,-460.0,0.00020536,2]
[375772515,1753739445816,-460.0,0.00020536,2]
[375772516,1753739445825,-460.0,0.00020536,2]
[375772517,1753739445836,-460.0,0.00020536,2]
[375772518,1753739445847,-460.0,0.00020536,2]
[375772519,1753739445857,-460.0,0.00020536,2]
[375772520,1753739445868,-460.0,0.00020538,2]
[375772521,1753739445879,-689.95,0.00020538,2]
[375772522,1753739445889,-2815.69,0.00020539,2]
[375772523,1753739445899,-460.0,0.00020539,2]
[375772524,1753739445910,-460.0,0.00020542,2]
[375772525,1753739445920,-568.04,0.00020542,2]
[375772526,1753739445930,-839.84,0.00020542,2]
[375772528,1753739445940,-460.0,0.00020546,2]
[375772529,1753739445951,-923.15,0.00020546,2]
[375772530,1753739445961,-460.0,0.00020546,2]
[375772531,1753739445972,-796.17,0.00020546,2]
[375772532,1753739445982,-460.0,0.00020546,2]
[375772533,1753739445992,-460.0,0.00020546,2]
[375772534,1753739446003,-460.0,0.00020546,2]
[375772535,1753739446013,-551.85639474,0.00020546,2]
[375772536,1753739446023,-209.14776071,0.00020568,2]
[375772537,1753739446033,-500.0,0.00020644,2]
[375772538,1753739446043,-460.0,0.00020807,2]
[375772539,1753739446055,-623.23,0.00020807,2]
[375772540,1753739446067,-808.63,0.00020808,2]
[375772542,1753739446082,-1094.9,0.00020808,2]
[375772543,1753739446094,-460.0,0.00020808,2]
[375772544,1753739446105,-1894.34,0.00020808,2]
[375772545,1753739446119,-289.18,0.00020808,2]
[375772546,1753739446129,-460.0,0.00020809,2]
[375772547,1753739446140,-460.0,0.00020809,2]
[375772549,1753739446153,-203.51833604,0.00020809,2]
[375772551,1753739446163,-460.0,0.00020809,2]
[375772552,1753739446174,-460.0,0.00020809,2]
[375772553,1753739446184,-460.0,0.00020809,2]
[375772554,1753739446195,-460.0,0.00020809,2]
[375772555,1753739446206,-693.42,0.00020809,2]
[375772556,1753739446216,-513.82,0.00020809,2]
[375772557,1753739446226,-460.0,0.00020809,2]
[375772558,1753739446236,-460.0,0.00020809,2]
[375772559,1753739446247,-460.0,0.00020809,2]
[375772560,1753739446257,-268.11,0.00020809,2]
[375772561,1753739446268,-460.0,0.00020809,2]
[375772562,1753739446278,-478.49447715,0.00020809,2]
[375772563,1753739446288,-460.0,0.00020809,2]
[375772564,1753739446298,-460.0,0.00020809,2]
[375772565,1753739446308,-460.0,0.0002081,2]
[375772566,1753739446319,-460.0,0.0002081,2]
[375772567,1753739446330,-460.0,0.0002081,2]
[375772568,1753739446340,-151.0,0.0002081,2]
[375772569,1753739446350,-151.0,0.0002081,2]
[375772570,1753739446361,-151.0,0.0002081,2]
[375772571,1753739446370,-460.0,0.0002081,2]
[375772572,1753739446381,-460.0,0.00020812,2]
[375772573,1753739446391,-689.95,0.00020812,2]
[375772574,1753739446401,-2815.69,0.00020813,2]
[375772575,1753739446411,-460.0,0.00020813,2]
[375772576,1753739446422,-592.9,0.00020816,2]
[375772577,1753739446434,-568.04,0.00020816,2]
[375772578,1753739446444,-839.84,0.00020816,2]
[375772579,1753739446456,-460.0,0.0002082,2]
[375772580,1753739446466,-923.15,0.0002082,2]
[375772581,1753739446477,-460.0,0.0002082,2]
[375772582,1753739446487,-796.17,0.0002082,2]
[375772583,1753739446498,-460.0,0.0002082,2]
[375772584,1753739446509,-152.104275,0.0002082,2]
[375772585,1753739446519,-241.932769,0.0002082,2]
[375772586,1753739446529,-241.932769,0.0002082,2]
[375772587,1753739446540,-460.0,0.0002082,2]
[375772588,1753739446551,-151.0,0.0002082,2]
[375772589,1753739446561,-151.0,0.0002082,2]
[375772590,1753739446583,-460.0,0.0002082,2]
[375772591,1753739446598,-1100.28164473,0.00020832,2]
[375772592,1753739446612,-214.87999826,0.00020841,3]
[375772593,1753739446622,-160.0,0.00020841,3]
[375772594,1753739446633,-160.0,0.00020841,3]
[375772595,1753739446644,-12634.73134317,0.00020841,3]
[375772596,1753739446655,-312.16666667,0.00020841,3]
[375772597,1753739446666,-223.93806572,0.00020841,3]
[375772598,1753739446677,-503.59439869,0.00020868,2]
[375772599,1753739446687,-1404.74566212,0.00020868,2]
[375772600,1753739446698,-510.63255838,0.00020868,2]
[375772601,1753739446708,-1500.0,0.00020868,2]
[375772603,1753739446720,-500.0,0.00020868,2]
[375772604,1753739446730,-160.0,0.00020871,2]
[375772605,1753739446741,-500.0,0.00020873,2]
[375772606,1753739446751,-500.0,0.00020873,2]
[375772607,1753739446761,-500.0,0.00020873,2]
[375772608,1753739446771,-500.0,0.00020873,2]
[375772609,1753739446782,-467.30561576,0.00020886,2]
[375772610,1753739446792,-3251.76235392,0.00020886,2]
[375772611,1753739446802,-3251.76235392,0.00020886,2]
[375772612,1753739446815,-3251.76235392,0.00020886,2]
[375772613,1753739446826,-3251.76235392,0.00020886,2]
[375772614,1753739446839,-3251.76235392,0.00020886,2]
[375772615,1753739446850,-3251.76235392,0.00020886,2]
[375772616,1753739446860,-3251.76235392,0.00020886,2]
[375772617,1753739446870,-3251.76235392,0.00020886,2]
[375772618,1753739446880,-3251.76235392,0.00020886,2]
[375772619,1753739446891,-3251.76235392,0.00020886,2]
[375772620,1753739446901,-3251.76235392,0.00020886,2]
[375772621,1753739446911,-299.344732,0.00020889,2]
[375772622,1753739446921,-151.0,0.00020889,2]
[375772623,1753739446932,-299.344732,0.00020889,2]
[375772624,1753739446943,-151.0,0.00020889,2]
[375772625,1753739446952,-151.0,0.00020889,2]
[375772626,1753739446962,-151.0,0.0002089,2]
[375772627,1753739446973,-151.0,0.0002089,2]
[375772628,1753739446983,-257.432955,0.0002089,2]
[375772629,1753739446993,-257.432955,0.0002089,2]
[375772630,1753739447004,-241.932769,0.0002089,2]
[375772631,1753739447014,-241.932769,0.0002089,2]
[375772632,1753739447024,-151.0,0.0002089,2]
[375772633,1753739447034,-299.344732,0.0002089,2]
[375772634,1753739447043,-151.0,0.0002089,2]
[375772635,1753739447053,-299.344732,0.0002089,2]
[375772636,1753739447063,-151.0,0.0002089,2]
[375772637,1753739447076,-151.0,0.0002089,2]
[375772638,1753739447086,-263505.64519428,0.0002089,2]
[375772639,1753739447096,-151.0,0.0002099,2]
[375772640,1753739447107,-151.0,0.0002099,2]
[375772641,1753739447117,-151.0,0.0002099,2]
[375772642,1753739447127,-462.628082,0.0002099,2]
[375772643,1753739447137,-462.628082,0.0002099,2]
[375772644,1753739447146,-901.88,0.00021072,3]
[375772645,1753739447158,-450.94,0.00021072,3]
[375772646,1753739447168,-623.23,0.00021081,2]
[375772647,1753739447179,-808.63,0.00021082,2]
[375772648,1753739447189,-1094.9,0.00021082,2]
[375772649,1753739447199,-460.0,0.00021082,2]
[375772650,1753739447210,-1894.34,0.00021082,2]
[375772651,1753739447221,-460.0,0.00021083,2]
[375772652,1753739447231,-460.0,0.00021083,2]
[375772653,1753739447242,-460.0,0.00021083,2]
[375772654,1753739447252,-460.0,0.00021083,2]
[375772655,1753739447262,-693.42,0.00021083,2]
[375772656,1753739447272,-460.0,0.00021083,2]
[375772657,1753739447282,-460.0,0.00021083,2]
[375772658,1753739447292,-460.0,0.00021084,2]
[375772659,1753739447302,-323.14,0.00021084,2]
[375772660,1753739447312,-460.0,0.00021084,2]
[375772661,1753739447321,-460.0,0.00021086,2]
[375772662,1753739447332,-689.95,0.00021086,2]
[375772663,1753739447342,-2815.69,0.00021087,2]
[375772664,1753739447352,-460.0,0.00021087,2]
[375772665,1753739447363,-568.04,0.0002109,2]
[375772666,1753739447374,-839.84,0.0002109,2]
[375772667,1753739447385,-460.0,0.00021094,2]
[375772668,1753739447396,-923.15,0.00021094,2]
[375772669,1753739447406,-460.0,0.00021094,2]
[375772670,1753739447417,-796.17,0.00021094,2]
[375772671,1753739447428,-460.0,0.00021094,2]
[375772672,1753739447438,-460.0,0.00021094,2]
[375772673,1753739447448,-460.0,0.00021094,2]
[375772674,1753739447459,-672.89646556,0.0002114,2]
[375772675,1753739447470,-231.34820253,0.00021191,2]
[375772676,1753739447482,-160.0,0.00021191,2]
[375772677,1753739447492,-216.06083566,0.00021191,2]
[375772678,1753739447503,-160.0,0.00021191,2]
[375772679,1753739447514,-312.16666667,0.00021191,2]
[375772680,1753739447524,-840.90880427,0.00021191,2]
[375772681,1753739447535,-214.87999826,0.00021191,2]
[375772682,1753739447546,-160.0,0.00021191,2]
[375772683,1753739447557,-12634.73134317,0.00021191,2]
[375772684,1753739447567,-454.6043428,0.00021191,2]
[375772685,1753739447578,-160.0,0.00021191,2]
[375772686,1753739447588,-160.0,0.00021191,2]
[375772687,1753739447599,-160.0,0.00021192,2]
[375772688,1753739447610,-526.58819812,0.00021192,2]
[375772689,1753739447620,-160.0,0.00021192,2]
[375772690,1753739447631,-447.40591372,0.00021258,2]
[375772691,1753739447642,-855.1,0.00021269,4]
[375772692,1753739447652,-1680.0,0.00021278,2]
[375772693,1753739447662,-623.23,0.00021355,2]
[375772694,1753739447672,-808.63,0.00021356,2]
[375772695,1753739447682,-1094.9,0.00021356,2]
[375772696,1753739447692,-460.0,0.00021356,2]
[375772697,1753739447703,-1894.34,0.00021356,2]
[375772698,1753739447713,-460.0,0.00021357,2]
[375772699,1753739447724,-693.42,0.00021357,2]
[375772700,1753739447734,-460.0,0.00021357,2]
[375772701,1753739447744,-460.0,0.00021358,2]
[375772702,1753739447755,-527.66,0.00021358,2]
[375772703,1753739447765,-689.95,0.0002136,2]
[375772704,1753739447775,-2815.69,0.00021361,2]
[375772705,1753739447785,-460.0,0.00021361,2]
[375772706,1753739447796,-568.04,0.00021364,2]
[375772707,1753739447806,-839.84,0.00021364,2]
[375772708,1753739447816,-428.03,0.00021368,2]
[375772709,1753739447827,-923.15,0.00021368,2]
[375772710,1753739447837,-796.17,0.00021368,2]
[375772711,1753739447847,-151.0,0.00021368,2]
[375772712,1753739447859,-460.0,0.00021368,2]
[375772713,1753739447869,-460.0,0.00021368,2]
[375772714,1753739447880,-460.0,0.00021368,2]
[375772715,1753739447891,-13897.76003173,0.000214,2]
[375772716,1753739447902,-260.0,0.00021419,2]
[375772717,1753739447912,-514.23413505,0.00021421,2]
[375772718,1753739447930,-1000.0,0.00021421,2]
[375772719,1753739447940,-500.0,0.00021421,2]
[375772720,1753739447951,-623.23,0.00021629,2]
[375772721,1753739447961,-808.63,0.0002163,2]
[375772722,1753739447971,-1094.9,0.0002163,2]
[375772723,1753739447982,-460.0,0.0002163,2]
[375772724,1753739447992,-1894.34,0.0002163,2]
[375772725,1753739448003,-198.51,0.00021631,2]
[375772726,1753739448014,-693.42,0.00021631,2]
[375772727,1753739448024,-460.0,0.00021632,2]
[375772728,1753739448034,-689.95,0.00021634,2]
[375772729,1753739448044,-2815.69,0.00021635,2]
[375772730,1753739448054,-460.0,0.00021635,2]
[375772731,1753739448065,-178.917,0.00021638,2]
[375772732,1753739448076,-568.04,0.00021638,2]
[375772733,1753739448087,-839.84,0.00021638,2]
[375772734,1753739448097,-923.15,0.00021642,2]
[375772735,1753739448108,-796.17,0.00021642,2]
[375772736,1753739448119,-460.0,0.00021642,2]
[375772737,1753739448130,-460.0,0.00021642,2]
[375772738,1753739448140,-460.0,0.00021642,2]
[375772739,1753739448151,-855.1,0.0002171,4]
[375772740,1753739448162,-151.0,0.00021738,2]
[375772741,1753739448173,-203.173675,0.00021738,2]
[375772742,1753739448183,-39538.08313054,0.00021739,2]
[375772743,1753739448194,-151.0,0.00021739,2]
[375772744,1753739448204,-151.0,0.00021739,2]
[375772745,1753739448215,-151.0,0.00021739,2]
[375772746,1753739448225,-151.0,0.00021739,2]
[375772747,1753739448235,-151.0,0.00021739,2]
[375772748,1753739448246,-151.0,0.00021739,2]
[375772749,1753739448256,-462.628082,0.00021739,2]